fUST/lending_fUST_20241211
["ID","MTS","AMOUNT","RATE_DAILY","PERIOD"]
[344901896,1733859050290,-500.0,0.00024989,2]
[344901897,1733859050299,-500.0,0.00024989,2]
[344901898,1733859050309,-500.0,0.00024989,2]
[344901899,1733859050317,-500.0,0.00024989,2]
[344901900,1733859050325,-500.0,0.00024989,2]
[344901901,1733859050334,-32317.2118721,0.00030034,10]
[344901904,1733859314244,163.871397,0.00013973,2]
[344901948,1733859937145,-400.0,0.00025204,7]
[344901949,1733859937168,-420.0,0.00027071,7]
[344901950,1733859937190,-172.063942,0.00027357,2]
[344901951,1733859937212,-500.0,0.00027397,7]
[344901952,1733859937233,-195.90168143,0.00027397,2]
[344901953,1733859937254,-178.65486,0.00027487,7]
[344901954,1733859937277,-300.0,0.0002754,2]
[344901955,1733859937298,-300.0,0.0002754,2]
[344901956,1733859937320,-5476.8294251,0.00027541,2]
[344901957,1733859937340,-295.660369,0.00027797,2]
[344901958,1733859937361,-276.986139,0.00027822,2]
[344901959,1733859937383,-572.204,0.0002859,2]
[344901960,1733859937526,-500.0,0.00028767,9]
[344901961,1733859937548,-276.986139,0.00028851,2]
[344901962,1733859937568,-4373.05605276,0.0002899,15]
[344901963,1733859937588,-9999.97000314,0.00029,2]
[344901964,1733859937607,-1018.51164955,0.00029041,120]
[344901965,1733859937627,-420.0,0.00029327,9]
[344901966,1733859937646,-532.0,0.00029403,2]
[344901967,1733859937667,-2369.0,0.00029403,2]
[344901968,1733859937687,-337.322,0.00029403,2]
[344901969,1733859937707,-483.15431627,0.00029664,2]
[344901970,1733859937727,-299.37271965,0.000297,2]
[344901989,1733860224015,163.871397,0.00013973,2]
[344902065,1733860235871,-300.0,0.00024999,2]
[344902066,1733860235882,-300.0,0.00024999,2]
[344902067,1733860235893,-423.53716682,0.00025,2]
[344902068,1733860235985,-10618.46283318,0.00025,2]
[344902070,1733860235997,-420.0,0.00027082,2]
[344902072,1733860236007,-188.20156636,0.00027397,2]
[344902075,1733860236019,-803.8051069,0.00028512,2]
[344902077,1733860236030,-302.69733596,0.00029374,2]
[344902079,1733860236040,-302.69733596,0.00029374,2]
[344902081,1733860236051,-1464.371334,0.00029403,2]
[344902110,1733860239835,-886.628666,0.00029403,2]
[344902111,1733860239847,-302.69733596,0.00029668,2]
[344902112,1733860239859,-302.69733596,0.00029668,2]
[344902113,1733860239875,-1852.08,0.0002975,2]
[344902114,1733860239887,-162.67233193,0.0002985,24]
[344902115,1733860239899,-500.0,0.00029863,7]
[344902116,1733860239917,-500.0,0.00029863,7]
[344902117,1733860239927,-500.0,0.00029863,7]
[344902118,1733860239938,-500.0,0.00029863,7]
[344902119,1733860239949,-500.0,0.00029863,7]
[344902120,1733860239960,-500.0,0.00029863,7]
[344902121,1733860239971,-500.0,0.00029863,7]
[344902122,1733860239982,-500.0,0.00029863,7]
[344902123,1733860239993,-248.46,0.00029863,7]
[344902124,1733860240005,-285.74,0.00029863,7]
[344902125,1733860240017,-500.0,0.00029863,7]
[344902126,1733860240028,-500.0,0.00029863,7]
[344902127,1733860240041,-500.0,0.00029863,7]
[344902128,1733860240053,-500.0,0.00029863,7]
[344902129,1733860240064,-500.0,0.00029863,7]
[344902130,1733860240076,-251.706,0.00029863,7]
[344902131,1733860240087,-500.0,0.00029863,7]
[344902132,1733860240098,-500.0,0.00029863,7]
[344902133,1733860240107,-500.0,0.00029863,7]
[344902134,1733860240117,-556.82157758,0.00029863,7]
[344902135,1733860240127,-500.0,0.00029863,7]
[344902136,1733860240138,-500.0,0.00029863,7]
[344902137,1733860240148,-539.67662724,0.00029863,7]
[344902139,1733860240164,-500.0,0.00029863,7]
[344902141,1733860240174,-500.0,0.00029863,7]
[344902143,1733860240185,-500.0,0.00029863,7]
[344902144,1733860240196,-500.0,0.00029863,7]
[344902145,1733860240206,-500.0,0.00029863,7]
[344902146,1733860240216,-500.0,0.00029863,7]
[344902147,1733860240227,-500.0,0.00029863,7]
[344902148,1733860240237,-985.72,0.00029863,7]
[344902149,1733860240247,-985.72,0.00029863,7]
[344902150,1733860240258,-500.0,0.00029863,7]
[344902151,1733860240268,-500.0,0.00029863,7]
[344902152,1733860240279,-500.0,0.00029863,7]
[344902153,1733860240289,-500.0,0.00029863,7]
[344902154,1733860240300,-500.0,0.00029863,7]
[344902155,1733860240311,-500.0,0.00029863,7]
[344902157,1733860240322,-583.31989622,0.00029863,7]
[344902158,1733860240332,-500.0,0.00029863,7]
[344902159,1733860240342,-500.0,0.00029863,7]
[344902161,1733860240352,-529.43431342,0.00029863,7]
[344902162,1733860240363,-500.0,0.00029863,7]
[344902163,1733860240373,-171.83,0.00029863,7]
[344902164,1733860240384,-500.0,0.00029863,7]
[344902165,1733860240394,-500.0,0.00029863,7]
[344902166,1733860240409,-500.0,0.00029863,7]
[344902167,1733860240426,-500.0,0.00029863,7]
[344902168,1733860240436,-500.0,0.00029863,7]
[344902169,1733860240447,-500.0,0.00029863,7]
[344902170,1733860240457,-500.0,0.00029863,7]
[344902171,1733860240467,-500.0,0.00029863,7]
[344902172,1733860240478,-500.0,0.00029863,7]
[344902173,1733860240489,-500.0,0.00029863,7]
[344902174,1733860240500,-500.0,0.00029863,7]
[344902175,1733860240511,-500.0,0.00029863,7]
[344902176,1733860240522,-217.28335548,0.00029863,7]
[344902177,1733860240533,-500.0,0.00029863,7]
[344902180,1733860240681,-501.39671261,0.00029863,7]
[344902182,1733860240696,-500.0,0.00029863,7]
[344902183,1733860240705,-500.0,0.00029863,7]
[344902184,1733860240715,-576.48123354,0.00029863,7]
[344902185,1733860240724,-502.25082679,0.00029863,7]
[344902186,1733860240733,-502.87545959,0.00029863,7]
[344902187,1733860240742,-500.0,0.00029863,7]
[344902188,1733860240751,-500.0,0.00029863,7]
[344902189,1733860240761,-500.0,0.00029863,7]
[344902190,1733860240770,-500.0,0.00029863,7]
[344902191,1733860240779,-500.0,0.00029863,7]
[344902192,1733860240788,-500.0,0.00029863,7]
[344902193,1733860240797,-500.0,0.00029863,7]
[344902194,1733860240807,-500.0,0.00029863,7]
[344902195,1733860240816,-500.0,0.00029863,7]
[344902196,1733860240825,-500.0,0.00029863,7]
[344902197,1733860240834,-500.0,0.00029863,7]
[344902198,1733860240843,-500.0,0.00029863,7]
[344902199,1733860240853,-500.0,0.00029863,7]
[344902200,1733860240863,-500.0,0.00029863,7]
[344902201,1733860240876,-500.0,0.00029863,7]
[344902202,1733860240885,-500.0,0.00029863,7]
[344902203,1733860240894,-500.0,0.00029863,7]
[344902204,1733860240907,-500.0,0.00029863,7]
[344902205,1733860240916,-500.0,0.00029863,7]
[344902206,1733860240925,-425.97053436,0.00029863,7]
[344902207,1733860240935,-625.53112794,0.00029863,7]
[344902208,1733860240945,-276.986139,0.00029881,2]
[344902209,1733860240955,-300.0,0.000299,14]
[344902210,1733860240966,-161.43,0.000299,31]
[344902211,1733860240977,-161.43,0.000299,31]
[344902212,1733860240986,-161.43,0.000299,31]
[344902213,1733860240996,-161.43,0.000299,31]
[344902214,1733860241005,-161.43,0.000299,31]
[344902215,1733860241015,-161.43,0.000299,31]
[344902216,1733860241024,-161.43,0.000299,31]
[344902217,1733860241033,-161.43,0.000299,31]
[344902218,1733860241043,-161.43,0.000299,31]
[344902219,1733860241052,-161.43,0.000299,31]
[344902220,1733860241061,-161.43,0.000299,31]
[344902221,1733860241071,-161.43,0.000299,31]
[344902222,1733860241080,-166.50141119,0.00029916,7]
[344902223,1733860241090,-166.50141119,0.00029916,7]
[344902224,1733860241099,-166.50141119,0.00029916,7]
[344902225,1733860241109,-166.5,0.00029916,7]
[344902226,1733860241119,-166.50141119,0.00029916,7]
[344902227,1733860241128,-166.50141119,0.00029916,7]
[344902228,1733860241138,-166.50141119,0.00029916,7]
[344902229,1733860241148,-166.50141119,0.00029916,7]
[344902230,1733860241160,-166.50141119,0.00029916,7]
[344902231,1733860241170,-166.5,0.00029916,7]
[344902232,1733860241179,-302.69733596,0.00029962,2]
[344902233,1733860241189,-302.69733596,0.00029962,2]
[344902234,1733860241198,-500.0,0.00029999,7]
[344902235,1733860241208,-985.72,0.00029999,7]
[344902236,1733860241217,-500.0,0.00029999,7]
[344902237,1733860241227,-500.0,0.00029999,7]
[344902238,1733860241236,-500.0,0.00029999,7]
[344902239,1733860241245,-500.0,0.00029999,7]
[344902240,1733860241255,-555.69,0.0003,2]
[344902241,1733860241266,-2000.0,0.0003,2]
[344902242,1733860241275,-161.43,0.0003,31]
[344902243,1733860241284,-161.43,0.0003,31]
[344902244,1733860241294,-161.43,0.0003,31]
[344902245,1733860241303,-161.43,0.0003,31]
[344902246,1733860241312,-161.43,0.0003,31]
[344902247,1733860241322,-161.43,0.0003,31]
[344902248,1733860241332,-161.43,0.0003,31]
[344902249,1733860241341,-161.43,0.0003,31]
[344902250,1733860241351,-161.43,0.0003,31]
[344902251,1733860241360,-161.43,0.0003,31]
[344902252,1733860241369,-161.43,0.0003,31]
[344902253,1733860241379,-161.43,0.0003,31]
[344902254,1733860241389,-161.43,0.0003,31]
[344902255,1733860241399,-161.43,0.0003,31]
[344902256,1733860241410,-161.43,0.0003,31]
[344902257,1733860241420,-161.43,0.0003,31]
[344902258,1733860241430,-161.43,0.0003,31]
[344902259,1733860241440,-161.43,0.0003,31]
[344902260,1733860241450,-161.43,0.0003,31]
[344902261,1733860241459,-161.43,0.0003,31]
[344902262,1733860241470,-161.43,0.0003,31]
[344902263,1733860241480,-161.43,0.0003,31]
[344902264,1733860241490,-161.43,0.0003,31]
[344902265,1733860241499,-161.43,0.0003,31]
[344902266,1733860241507,-1000.0,0.0003,2]
[344902267,1733860241517,-368.16,0.00030013,7]
[344902268,1733860241527,-985.72,0.00030013,7]
[344902269,1733860241536,-500.0,0.00030013,7]
[344902270,1733860241546,-500.0,0.00030013,7]
[344902271,1733860241555,-500.0,0.00030013,7]
[344902272,1733860241564,-478.69,0.00030013,7]
[344902273,1733860241574,-500.0,0.00030013,7]
[344902274,1733860241583,-500.0,0.00030013,7]
[344902275,1733860241593,-582.96,0.00030013,7]
[344902276,1733860241602,-500.0,0.00030013,7]
[344902277,1733860241611,-500.0,0.00030013,7]
[344902278,1733860241621,-500.0,0.00030013,7]
[344902279,1733860241630,-500.0,0.00030013,7]
[344902280,1733860241639,-428.42334276,0.00030013,7]
[344902281,1733860241649,-500.0,0.00030013,7]
[344902282,1733860241660,-2556.91317709,0.00030015,4]
[344902283,1733860241670,-500.0,0.00030015,2]
[344902284,1733860241679,-500.0,0.00030015,2]
[344902285,1733860241688,-500.0,0.00030015,2]
[344902286,1733860241698,-500.0,0.00030015,2]
[344902287,1733860241707,-500.0,0.00030015,2]
[344902288,1733860241717,-500.0,0.00030015,2]
[344902289,1733860241726,-500.0,0.00030015,2]
[344902290,1733860241735,-500.0,0.00030015,2]
[344902291,1733860241745,-500.0,0.00030015,2]
[344902292,1733860241755,-500.0,0.00030015,2]
[344902293,1733860241764,-500.0,0.00030015,2]
[344902294,1733860241774,-497.43608929,0.00030015,2]
[344902295,1733860241783,-500.0,0.00030015,2]
[344902296,1733860241793,-151.0,0.00030015,7]
[344902297,1733860241803,-228.073848,0.00030015,7]
[344902298,1733860241813,-151.0,0.00030015,7]
[344902299,1733860241823,-151.0,0.00030015,7]
[344902300,1733860241833,-151.0,0.00030015,7]
[344902301,1733860241842,-985.72,0.00030015,7]
[344902302,1733860241852,-985.72,0.00030015,7]
[344902303,1733860241861,-985.72,0.00030015,7]
[344902304,1733860241877,-985.72,0.00030015,7]
[344902305,1733860241887,-985.72,0.00030015,7]
[344902306,1733860241896,-985.72,0.00030015,7]
[344902307,1733860241908,-985.72,0.00030015,7]
[344902308,1733860241919,-985.72,0.00030015,7]
[344902309,1733860241929,-985.72,0.00030015,7]
[344902310,1733860241938,-985.72,0.00030015,7]
[344902311,1733860241948,-985.72,0.00030015,7]
[344902312,1733860241958,-985.72,0.00030015,7]
[344902313,1733860241967,-985.72,0.00030015,7]
[344902314,1733860241977,-985.72,0.00030015,7]
[344902315,1733860241986,-985.72,0.00030015,7]
[344902316,1733860241996,-985.72,0.00030015,7]
[344902317,1733860242005,-985.72,0.00030015,7]
[344902318,1733860242014,-985.72,0.00030015,7]
[344902319,1733860242024,-985.72,0.00030015,7]
[344902320,1733860242033,-985.92,0.00030015,7]
[344902321,1733860242043,-500.0,0.00030015,7]
[344902322,1733860242052,-500.0,0.00030015,7]
[344902323,1733860242062,-500.0,0.00030015,7]
[344902324,1733860242071,-500.0,0.00030015,7]
[344902325,1733860242081,-500.0,0.00030015,7]
[344902326,1733860242090,-500.0,0.00030015,7]
[344902327,1733860242100,-500.0,0.00030015,7]
[344902328,1733860242110,-500.0,0.00030015,7]
[344902329,1733860242119,-500.0,0.00030015,7]
[344902330,1733860242129,-222.13316488,0.00030015,7]
[344902331,1733860242139,-389.58,0.00030015,7]
[344902332,1733860242149,-374.59084382,0.00030015,2]
[344902333,1733860242165,-57398.80411487,0.00030016,2]
[344902334,1733860242175,-1163.11571815,0.00030016,2]
[344902335,1733860242185,-3370573.36075593,0.00030016,10]
[344902336,1733860242442,-16669.28176661,0.00030016,10]
[344902374,1733861134179,-3995.0,0.00024503,11]
[344902375,1733861134201,-150.0,0.00025,2]
[344902376,1733861134224,-166.191683,0.00028114,2]
[344902377,1733861134245,-548.181,0.0002859,2]
[344902378,1733861134267,-155.17901796,0.00028732,2]
[344902379,1733861134288,-295.6603702,0.00028897,2]
[344902380,1733861134309,-166.191683,0.00029155,2]
[344902381,1733861134330,-213.5058504,0.00029205,30]
[344902382,1733861134358,-150.0,0.00029403,2]
[344902383,1733861134380,-302.69733596,0.00029508,2]
[344902384,1733861134400,-302.69733596,0.00029537,2]
[344902385,1733861134421,-300.0,0.00029761,2]
[344902386,1733861134443,-300.0,0.00029762,2]
[344902387,1733861134466,-422.48164856,0.00029763,2]
[344902388,1733861134490,-151.8511664,0.00029799,4]
[344902389,1733861134513,-302.69733596,0.00029803,2]
[344902390,1733861134537,-428.24314816,0.00029833,2]
[344902391,1733861134560,-500.0,0.00029862,2]
[344902392,1733861134582,-500.0,0.00029862,2]
[344902393,1733861134609,-500.0,0.00029862,2]
[344902394,1733861134632,-500.0,0.00029862,2]
[344902395,1733861134654,-500.0,0.00029862,2]
[344902396,1733861134677,-500.0,0.00029862,2]
[344902397,1733861134698,-500.0,0.00029862,2]
[344902398,1733861134720,-500.0,0.00029862,2]
[344902399,1733861134742,-500.0,0.00029862,2]
[344902400,1733861134764,-500.0,0.00029862,2]
[344902401,1733861134785,-497.43608929,0.00029862,2]
[344902402,1733861134807,-500.0,0.00029862,2]
[344902403,1733861134828,-500.0,0.00029862,2]
[344902404,1733861134852,-500.0,0.00029863,7]
[344902405,1733861134873,-500.0,0.00029863,7]
[344902406,1733861135006,-500.0,0.00029863,7]
[344902407,1733861135027,-500.0,0.00029863,7]
[344902408,1733861135047,-500.0,0.00029863,7]
[344902409,1733861135067,-531.64381134,0.00029863,7]
[344902410,1733861135087,-500.0,0.00029863,7]
[344902411,1733861135110,-500.0,0.00029863,7]
[344902412,1733861135129,-615.35993336,0.00029863,7]
[344902413,1733861135148,-502.15995962,0.00029863,7]
[344902414,1733861135171,-1013.5548245,0.00029863,7]
[344902415,1733861135192,-506.71060448,0.00029863,7]
[344902416,1733861135214,-500.0,0.00029863,7]
[344902417,1733861135235,-500.0,0.00029863,7]
[344902418,1733861135255,-500.0,0.00029863,7]
[344902419,1733861135274,-500.0,0.00029863,7]
[344902420,1733861135294,-500.0,0.00029863,7]
[344902421,1733861135314,-500.0,0.00029863,7]
[344902422,1733861135334,-500.0,0.00029863,7]
[344902423,1733861135357,-500.0,0.00029863,7]
[344902424,1733861135377,-500.0,0.00029863,7]
[344902425,1733861135399,-500.0,0.00029863,7]
[344902426,1733861135420,-500.0,0.00029863,7]
[344902427,1733861135441,-500.0,0.00029863,7]
[344902428,1733861135462,-500.0,0.00029863,7]
[344902429,1733861135483,-500.0,0.00029863,7]
[344902430,1733861135503,-500.0,0.00029863,7]
[344902431,1733861135522,-500.0,0.00029863,7]
[344902432,1733861135542,-500.0,0.00029863,7]
[344902433,1733861135561,-515.2232936,0.00029863,7]
[344902434,1733861135581,-500.0,0.00029863,7]
[344902435,1733861135603,-500.0,0.00029863,7]
[344902436,1733861135623,-500.0,0.00029863,7]
[344902437,1733861135643,-209.42518942,0.00029863,7]
[344902438,1733861135661,-412.47980385,0.00029863,7]
[344902439,1733861135681,-498.58193212,0.00029863,7]
[344902440,1733861135701,-500.0,0.00029863,7]
[344902441,1733861135721,-500.0,0.00029863,7]
[344902442,1733861135741,-500.0,0.00029863,7]
[344902443,1733861135761,-500.0,0.00029863,7]
[344902444,1733861135781,-500.0,0.00029863,7]
[344902445,1733861135801,-500.0,0.00029863,7]
[344902446,1733861135821,-500.0,0.00029863,7]
[344902447,1733861135841,-500.0,0.00029863,7]
[344902448,1733861135862,-500.0,0.00029863,7]
[344902449,1733861135882,-500.0,0.00029863,7]
[344902450,1733861135902,-500.0,0.00029863,7]
[344902451,1733861135922,-500.0,0.00029863,7]
[344902452,1733861135943,-500.0,0.00029863,7]
[344902453,1733861135963,-499.38237768,0.00029863,7]
[344902454,1733861135983,-500.0,0.00029863,7]
[344902455,1733861136003,-500.0,0.00029863,7]
[344902456,1733861136023,-500.0,0.00029863,7]
[344902457,1733861136043,-500.0,0.00029863,7]
[344902458,1733861136063,-500.0,0.00029863,7]
[344902459,1733861136083,-537.64595158,0.00029863,7]
[344902460,1733861136105,-500.0,0.00029863,7]
[344902461,1733861136125,-500.0,0.00029863,7]
[344902462,1733861136145,-500.0,0.00029863,7]
[344902463,1733861136169,-500.0,0.00029863,7]
[344902464,1733861136190,-500.0,0.00029863,7]
[344902465,1733861136211,-500.0,0.00029863,7]
[344902466,1733861136230,-500.0,0.00029863,7]
[344902467,1733861136252,-500.0,0.00029863,7]
[344902468,1733861136271,-529.43431342,0.00029863,7]
[344902469,1733861136292,-500.0,0.00029863,7]
[344902470,1733861136312,-500.0,0.00029863,7]
[344902471,1733861136333,-512.302512,0.00029863,7]
[344902472,1733861136357,-500.0,0.00029863,7]
[344902473,1733861136377,-548.88,0.00029863,7]
[344902474,1733861136398,-548.88,0.00029863,7]
[344902475,1733861136418,-500.0,0.00029863,7]
[344902476,1733861136439,-500.0,0.00029863,7]
[344902477,1733861136459,-500.0,0.00029863,7]
[344902478,1733861136480,-500.0,0.00029863,7]
[344902479,1733861136500,-500.0,0.00029863,7]
[344902480,1733861136520,-500.0,0.00029863,7]
[344902481,1733861136540,-245.22367764,0.00029863,7]
[344902483,1733861136560,-500.0,0.00029863,7]
[344902484,1733861136582,-379.77745803,0.00029863,7]
[344902485,1733861136606,-500.0,0.00029863,7]
[344902486,1733861136627,-500.0,0.00029863,7]
[344902487,1733861136647,-642.61214677,0.00029863,7]
[344902488,1733861136668,-500.0,0.00029863,7]
[344902489,1733861136689,-500.0,0.00029863,7]
[344902490,1733861136709,-500.0,0.00029863,7]
[344902491,1733861136731,-500.0,0.00029863,7]
[344902492,1733861136751,-500.0,0.00029863,7]
[344902493,1733861136772,-993.42,0.00029863,7]
[344902494,1733861136792,-500.0,0.00029863,7]
[344902495,1733861136813,-993.42,0.00029863,7]
[344902496,1733861136834,-500.0,0.00029863,7]
[344902497,1733861136860,-500.0,0.00029863,7]
[344902498,1733861136881,-500.0,0.00029863,7]
[344902499,1733861136902,-500.0,0.00029863,7]
[344902500,1733861136923,-555.38362935,0.00029863,7]
[344902501,1733861136943,-500.0,0.00029863,7]
[344902502,1733861136963,-500.0,0.00029863,7]
[344902503,1733861136987,-506.49859428,0.00029863,7]
[344902504,1733861137008,-500.0,0.00029863,7]
[344902505,1733861137029,-500.0,0.00029863,7]
[344902506,1733861137051,-263.97844924,0.00029863,7]
[344902507,1733861137072,-500.0,0.00029863,7]
[344902508,1733861137092,-500.0,0.00029863,7]
[344902509,1733861137113,-222.67830999,0.00029863,7]
[344902513,1733861240056,163.871397,0.00013973,2]
[344902514,1733861243099,-3448.0157427,0.0002975,3]
[344902570,1733861435259,-302.72757545,0.00029601,2]
[344902572,1733861435269,-1416.34325548,0.0002975,3]
[344902585,1733861439688,-7785.56275315,0.0002975,3]
[344902586,1733861439825,-18350.07824867,0.0002975,3]
[344902587,1733861439837,-385.33843678,0.00029763,2]
[344902588,1733861439848,-385.33843678,0.00029785,2]
[344902589,1733861439860,-385.33843678,0.00029807,2]
[344902590,1733861439871,-385.33843678,0.00029829,2]
[344902591,1733861439885,-385.33843678,0.00029851,2]
[344902592,1733861439898,-374.59084382,0.00029862,2]
[344902593,1733861439909,-500.0,0.00029863,7]
[344902594,1733861439920,-500.0,0.00029863,7]
[344902595,1733861439932,-500.0,0.00029863,7]
[344902596,1733861439942,-500.0,0.00029863,7]
[344902597,1733861439952,-500.0,0.00029863,7]
[344902598,1733861439963,-510.54997817,0.00029863,7]
[344902599,1733861439978,-500.0,0.00029863,7]
[344902600,1733861439993,-500.0,0.00029863,7]
[344902601,1733861440005,-500.0,0.00029863,7]
[344902602,1733861440015,-500.0,0.00029863,7]
[344902604,1733861440027,-500.0,0.00029863,7]
[344902605,1733861440039,-500.0,0.00029863,7]
[344902606,1733861440051,-527.07742387,0.00029863,7]
[344902607,1733861440062,-500.0,0.00029863,7]
[344902608,1733861440081,-500.0,0.00029863,7]
[344902609,1733861440096,-500.0,0.00029863,7]
[344902610,1733861440108,-500.0,0.00029863,7]
[344902611,1733861440120,-500.0,0.00029863,7]
[344902612,1733861440132,-508.62205375,0.00029863,7]
[344902613,1733861440145,-500.0,0.00029863,7]
[344902614,1733861440155,-500.0,0.00029863,7]
[344902615,1733861440164,-453.73259246,0.00029863,7]
[344902616,1733861440175,-500.0,0.00029863,7]
[344902617,1733861440184,-500.0,0.00029863,7]
[344902618,1733861440195,-500.0,0.00029863,7]
[344902619,1733861440206,-500.0,0.00029863,7]
[344902620,1733861440218,-500.0,0.00029863,7]
[344902621,1733861440231,-500.0,0.00029863,7]
[344902622,1733861440243,-509.67,0.00029863,7]
[344902623,1733861440256,-509.67,0.00029863,7]
[344902624,1733861440271,-500.0,0.00029863,7]
[344902625,1733861440282,-500.0,0.00029863,7]
[344902626,1733861440293,-500.0,0.00029863,7]
[344902627,1733861440305,-500.0,0.00029863,7]
[344902628,1733861440316,-500.0,0.00029863,7]
[344902630,1733861440331,-512.02430481,0.00029863,7]
[344902631,1733861440344,-500.0,0.00029863,7]
[344902632,1733861440354,-499.10040001,0.00029863,7]
[344902633,1733861440365,-500.0,0.00029863,7]
[344902634,1733861440375,-604.00758954,0.00029863,7]
[344902636,1733861440386,-500.0,0.00029863,7]
[344902638,1733861440398,-500.0,0.00029863,7]
[344902640,1733861440409,-500.0,0.00029863,7]
[344902642,1733861440420,-500.0,0.00029863,7]
[344902644,1733861440430,-500.0,0.00029863,7]
[344902645,1733861440441,-500.0,0.00029863,7]
[344902646,1733861440452,-500.0,0.00029863,7]
[344902648,1733861440462,-500.0,0.00029863,7]
[344902650,1733861440475,-500.0,0.00029863,7]
[344902652,1733861440485,-251.706,0.00029863,7]
[344902654,1733861440496,-500.0,0.00029863,7]
[344902656,1733861440506,-502.69009618,0.00029863,7]
[344902657,1733861440516,-500.0,0.00029863,7]
[344902658,1733861440526,-500.0,0.00029863,7]
[344902659,1733861440536,-500.0,0.00029863,7]
[344902660,1733861440548,-500.0,0.00029863,7]
[344902661,1733861440558,-500.0,0.00029863,7]
[344902662,1733861440572,-500.0,0.00029863,7]
[344902663,1733861440582,-500.0,0.00029863,7]
[344902664,1733861440593,-500.0,0.00029863,7]
[344902665,1733861440603,-500.0,0.00029863,7]
[344902666,1733861440614,-504.88470279,0.00029863,7]
[344902667,1733861440625,-500.0,0.00029863,7]
[344902668,1733861440635,-500.0,0.00029863,7]
[344902669,1733861440646,-500.0,0.00029863,7]
[344902670,1733861440656,-500.0,0.00029863,7]
[344902671,1733861440667,-500.0,0.00029863,7]
[344902672,1733861440677,-500.0,0.00029863,7]
[344902673,1733861440688,-500.0,0.00029863,7]
[344902674,1733861440698,-500.0,0.00029863,7]
[344902675,1733861440708,-500.0,0.00029863,7]
[344902676,1733861440719,-500.0,0.00029863,7]
[344902677,1733861440729,-501.08525477,0.00029863,7]
[344902678,1733861440740,-500.0,0.00029863,7]
[344902679,1733861440750,-500.0,0.00029863,7]
[344902680,1733861440760,-500.0,0.00029863,7]
[344902681,1733861440771,-500.0,0.00029863,7]
[344902682,1733861440783,-500.0,0.00029863,7]
[344902683,1733861440793,-500.0,0.00029863,7]
[344902684,1733861440804,-395.24854953,0.00029863,7]
[344902685,1733861440814,-500.0,0.00029863,7]
[344902686,1733861440828,-500.0,0.00029863,7]
[344902687,1733861440839,-500.0,0.00029863,7]
[344902688,1733861440849,-508.20832677,0.00029863,7]
[344902689,1733861440986,-500.0,0.00029863,7]
[344902690,1733861440996,-255.14994825,0.00029863,7]
[344902691,1733861441005,-500.0,0.00029863,7]
[344902692,1733861441015,-500.0,0.00029863,7]
[344902693,1733861441024,-500.0,0.00029863,7]
[344902694,1733861441033,-500.0,0.00029863,7]
[344902695,1733861441042,-500.0,0.00029863,7]
[344902696,1733861441051,-500.0,0.00029863,7]
[344902697,1733861441061,-500.0,0.00029863,7]